fUSD/lending_fUSD_20241221
["ID","MTS","AMOUNT","RATE_DAILY","PERIOD"]
[346226065,1734781846975,-500.0,0.00019724,2]
[346226066,1734781846986,-500.0,0.00019724,2]
[346226067,1734781846996,-500.0,0.00019724,2]
[346226068,1734781847006,-558.67,0.00019724,2]
[346226069,1734781847016,-406.0091794,0.00019724,2]
[346226070,1734781847028,-93.9908206,0.00019724,2]
[346226071,1734781847038,-370.630384,0.00019724,2]
[346226072,1734781869974,283.70327661,0.00016681,7]
[346226073,1734781906965,5043.0,0.000152,5]
[346226075,1734782103908,158.0,0.00019,30]
[346226076,1734782403155,159.0,0.00019,30]
[346226077,1734782404374,4087.52612848,0.00018,2]
[346226078,1734782699602,520.18,0.00016861,2]
[346226088,1734783032343,-349.33627045,0.00018766,2]
[346226089,1734783032449,-9413.95372955,0.00018766,2]
[346226090,1734783032460,-250.0,0.00018766,2]
[346226091,1734783032469,-129.21865045,0.00018774,2]
[346226092,1734783032483,-870.78134955,0.00018774,2]
[346226093,1734783032493,-150.0,0.00018776,2]
[346226094,1734783032504,-273.24,0.00018781,2]
[346226095,1734783032514,-250.0,0.00018787,2]
[346226096,1734783032524,-1141.63,0.00018807,2]
[346226097,1734783032534,-695.71,0.0001898,2]
[346226098,1734783032544,-414.61,0.00019017,30]
[346226100,1734783032554,-520.18,0.00019125,2]
[346226101,1734783032564,-500.0,0.00019518,2]
[346226102,1734783032574,-800.0,0.00019518,2]
[346226103,1734783032585,-2890.39425032,0.0001953,2]
[346226104,1734783032595,-153.15,0.000196,2]
[346226105,1734783032605,-1351.3,0.000196,2]
[346226106,1734783032615,-300.0,0.000196,2]
[346226107,1734783032625,-150.0,0.000196,2]
[346226108,1734783032635,-150.0,0.000196,2]
[346226109,1734783032646,-2579.1322,0.00019622,2]
[346226110,1734783032656,-675.4484,0.00019623,2]
[346226111,1734783032667,-2704.79611623,0.00019624,2]
[346226112,1734783032684,-2312.60644309,0.00019624,2]
[346226113,1734783032706,-405.45521288,0.00019624,2]
[346226114,1734783032720,-496.1865278,0.00019624,2]
[346226115,1734783032731,-455.4734722,0.00019624,2]
[346226116,1734783032744,-424.82797616,0.00019624,2]
[346226117,1734783032760,-2689.01410051,0.00019624,2]
[346226118,1734783032773,-912.16836332,0.00019624,2]
[346226119,1734783032785,-859.38486211,0.00019624,2]
[346226120,1734783032798,-323.1426257,0.00019624,2]
[346226121,1734783032807,-2696.92795411,0.0001967,2]
[346226122,1734783032819,-699.99850015,0.0001967,2]
[346226124,1734783032832,-558.64076234,0.0001967,2]
[346226126,1734783032844,-340.0161834,0.0001967,2]
[346226127,1734783032853,-318.0,0.00019678,2]
[346226128,1734783032863,-770.39,0.00019689,2]
[346226129,1734783032873,-436.91,0.00019689,2]
[346226130,1734783032883,-770.39,0.00019689,2]
[346226131,1734783032892,-52.1627126,0.00019689,2]
[346226132,1734783036593,150.59,0.00010137,2]
[346226135,1734783038416,-369.16868268,0.00019689,2]
[346226136,1734783038428,-15.57860472,0.00019689,2]
[346226137,1734783038437,-770.39,0.00019689,2]
[346226138,1734783038446,-770.21,0.00019689,2]
[346226139,1734783038455,-436.91,0.000197,2]
[346226140,1734783038464,-436.91,0.000197,2]
[346226141,1734783038473,-150.0,0.00019703,2]
[346226142,1734783038483,-150.0,0.00019713,2]
[346226143,1734783038492,-150.0,0.00019715,2]
[346226144,1734783038501,-150.0,0.00019715,2]
[346226145,1734783038510,-150.0,0.00019716,2]
[346226146,1734783038519,-150.0,0.00019717,2]
[346226147,1734783038527,-150.0,0.00019719,2]
[346226148,1734783038537,-150.0,0.00019719,2]
[346226149,1734783038545,-150.0,0.00019721,2]
[346226150,1734783038554,-500.0,0.00019721,2]
[346226151,1734783038563,-500.0,0.00019722,2]
[346226152,1734783038572,-512.12,0.00019722,2]
[346226153,1734783038581,-500.0,0.00019722,2]
[346226154,1734783038590,-500.0,0.00019722,2]
[346226155,1734783038599,-500.0,0.00019722,2]
[346226156,1734783038608,-500.0,0.00019722,2]
[346226157,1734783038617,-500.0,0.00019722,2]
[346226158,1734783038626,-315.52912506,0.00019722,2]
[346226159,1734783038635,-500.0,0.00019722,2]
[346226160,1734783038644,-500.0,0.00019722,2]
[346226161,1734783038653,-241.05925221,0.00019722,2]
[346226162,1734783038665,-297.12444579,0.00019722,2]
[346226163,1734783038674,-500.0,0.00019722,2]
[346226164,1734783038684,-500.0,0.00019722,2]
[346226165,1734783038694,-500.0,0.00019722,2]
[346226166,1734783038703,-500.0,0.00019722,2]
[346226167,1734783038712,-635.85736795,0.00019722,2]
[346226168,1734783038722,-500.0,0.00019722,2]
[346226169,1734783038734,-557.25,0.00019722,2]
[346226171,1734783038743,-500.0,0.00019722,2]
[346226173,1734783038752,-500.0,0.00019722,2]
[346226175,1734783038761,-500.0,0.00019722,2]
[346226177,1734783038770,-462.72861328,0.00019722,2]
[346226179,1734783038781,-37.27138672,0.00019722,2]
[346226180,1734783038790,-500.0,0.00019722,2]
[346226181,1734783038799,-500.0,0.00019722,2]
[346226182,1734783038807,-500.0,0.00019722,2]
[346226183,1734783038816,-500.0,0.00019722,2]
[346226184,1734783038825,-500.0,0.00019722,2]
[346226185,1734783038834,-500.0,0.00019722,2]
[346226186,1734783038843,-122.24686251,0.00019722,2]
[346226228,1734783040612,-150.0,0.00019704,2]
[346226229,1734783040623,-150.0,0.00019718,2]
[346226230,1734783040632,-150.0,0.00019721,2]
[346226231,1734783040641,-377.75313749,0.00019722,2]
[346226232,1734783040650,-500.0,0.00019722,2]
[346226233,1734783040659,-500.0,0.00019722,2]
[346226234,1734783040670,-500.0,0.00019722,2]
[346226235,1734783040679,-357.09,0.00019722,2]
[346226236,1734783040689,-500.0,0.00019722,2]
[346226237,1734783040699,-500.0,0.00019722,2]
[346226238,1734783040708,-500.0,0.00019722,2]
[346226239,1734783040718,-500.0,0.00019722,2]
[346226240,1734783040727,-500.0,0.00019722,2]
[346226241,1734783040737,-500.0,0.00019722,2]
[346226242,1734783040746,-500.0,0.00019722,2]
[346226243,1734783040754,-1650.91,0.00019722,2]
[346226244,1734783040764,-1127.59,0.00019722,2]
[346226245,1734783040773,-500.0,0.00019723,2]
[346226246,1734783040782,-500.0,0.00019723,2]
[346226247,1734783040791,-506.62161579,0.00019723,2]
[346226248,1734783040800,-500.0,0.00019723,2]
[346226249,1734783040810,-500.0,0.00019723,2]
[346226250,1734783040819,-401.18073731,0.00019723,2]
[346226251,1734783040828,-500.0,0.00019723,2]
[346226253,1734783040837,-500.0,0.00019723,2]
[346226255,1734783040847,-500.0,0.00019723,2]
[346226257,1734783040857,-500.0,0.00019723,2]
[346226259,1734783040866,-500.0,0.00019723,2]
[346226261,1734783040875,-500.0,0.00019723,2]
[346226263,1734783040885,-500.0,0.00019723,2]
[346226264,1734783040894,-503.70346334,0.00019723,2]
[346226265,1734783040903,-150.0,0.00019723,2]
[346226266,1734783040913,-150.0,0.00019723,2]
[346226268,1734783040922,-500.0,0.00019723,2]
[346226269,1734783040931,-430.80028002,0.00019723,2]
[346226270,1734783040940,-500.0,0.00019723,2]
[346226271,1734783040949,-500.0,0.00019723,2]
[346226272,1734783040957,-1536.12876605,0.00019724,2]
[346226273,1734783040981,-684.71776395,0.00019724,2]
[346226274,1734783040994,-184.83823532,0.00019726,2]
[346226276,1734783043441,-315.16176468,0.00019726,2]
[346226277,1734783043452,-500.0,0.00019726,2]
[346226278,1734783043461,-150.0,0.00019726,2]
[346226279,1734783043471,-150.0,0.00019727,2]
[346226280,1734783043480,-150.0,0.0001973,2]
[346226281,1734783043490,-150.0,0.00019733,2]
[346226282,1734783043499,-150.0,0.00019733,2]
[346226283,1734783043508,-150.0,0.00019736,2]
[346226284,1734783043518,-150.0,0.00019738,2]
[346226285,1734783043528,-150.0,0.00019741,2]
[346226286,1734783043537,-150.0,0.00019742,2]
[346226287,1734783043547,-150.0,0.00019749,2]
[346226288,1734783043556,-150.0,0.0001975,2]
[346226289,1734783043565,-150.0,0.00019751,2]
[346226290,1734783043576,-150.0,0.00019756,2]
[346226291,1734783043586,-150.0,0.0001976,2]
[346226292,1734783043595,-150.0,0.00019766,2]
[346226293,1734783043605,-150.0,0.00019766,2]
[346226294,1734783043615,-150.0,0.00019767,2]
[346226295,1734783043624,-500.0,0.00019769,2]
[346226296,1734783043634,-150.0,0.00019771,2]
[346226297,1734783043643,-150.0,0.00019774,2]
[346226298,1734783043653,-150.0,0.00019776,2]
[346226299,1734783043663,-150.0,0.00019776,2]
[346226300,1734783043673,-161.41087815,0.00019777,2]
[346226301,1734783043683,-792.72229837,0.00019777,2]
[346226302,1734783043693,-4366.9414588,0.00019778,2]
[346226309,1734783043756,-633.0585412,0.00019778,2]
[346226311,1734783043766,-150.0,0.00019778,2]
[346226313,1734783043775,-150.0,0.0001978,2]
[346226315,1734783043784,-67.68498031,0.00019785,2]
[346226320,1734783046219,-150.0,0.00019714,2]
[346226321,1734783046229,-116.83853383,0.00019732,2]
[346226322,1734783046379,-150.0,0.00019712,2]
[346226323,1734783046389,-33.16146617,0.00019732,2]
[346226324,1734783046398,-150.0,0.00019749,2]
[346226325,1734783046407,-150.0,0.0001976,2]
[346226326,1734783046417,-13.14068583,0.00019774,2]
[346226327,1734783046428,-136.85931417,0.00019774,2]
[346226328,1734783046438,-295.02568583,0.00019777,2]
[346226329,1734783046451,-1992.82547722,0.00019777,2]
[346226330,1734783046462,-1874.0697,0.00019777,2]
[346226331,1734783046480,-150.0,0.00019741,2]
[346226332,1734783046491,-838.07913695,0.00019777,2]
[346226333,1734783046500,-150.0,0.00019782,2]
[346226334,1734783046510,-82.31501969,0.00019785,2]
[346226335,1734783046519,-150.0,0.00019786,2]
[346226336,1734783046528,-792.72229832,0.00019788,2]
[346226337,1734783046538,-150.0,0.00019793,2]
[346226338,1734783046547,-150.0,0.00019795,2]
[346226339,1734783046557,-150.0,0.00019795,2]
[346226340,1734783046566,-150.0,0.00019796,2]
[346226341,1734783046575,-150.0,0.00019798,2]
[346226342,1734783046585,-792.72229832,0.000198,2]
[346226349,1734783046762,-1000.0,0.000198,2]
[346226350,1734783046772,-150.0,0.00019801,2]
[346226352,1734783046781,-150.0,0.00019804,2]
[346226354,1734783046791,-150.0,0.00019807,2]
[346226356,1734783046801,-150.0,0.00019809,2]
[346226358,1734783046811,-150.0,0.00019811,2]
[346226360,1734783046820,-689.50201812,0.00019811,2]
[346226363,1734783046840,-150.0,0.00019789,2]
[346226365,1734783046850,-103.2202802,0.00019811,2]
[346226367,1734783046859,-150.0,0.00019813,2]
[346226369,1734783046868,-150.0,0.00019814,2]
[346226371,1734783046878,-150.0,0.00019815,2]
[346226373,1734783046887,-500.0,0.00019816,2]
[346226375,1734783046897,-150.0,0.00019817,2]
[346226377,1734783046907,-150.0,0.0001982,2]
[346226379,1734783046916,-96.7797198,0.0001982,2]
[346226382,1734783046929,-53.2202802,0.0001982,2]
[346226383,1734783046938,-150.0,0.00019822,2]
[346226385,1734783046948,-792.72229832,0.00019823,2]
[346226386,1734783046958,-150.0,0.00019824,2]
[346226387,1734783046967,-150.0,0.00019826,2]
[346226388,1734783046977,-150.0,0.00019829,2]
[346226389,1734783046987,-150.0,0.00019832,2]
[346226390,1734783046998,-150.0,0.00019832,2]
[346226391,1734783047008,-150.0,0.00019834,2]
[346226392,1734783047018,-792.72229832,0.00019834,2]
[346226393,1734783047029,-150.0,0.00019837,2]
[346226394,1734783047039,-150.0,0.00019837,2]
[346226395,1734783047049,-150.0,0.00019838,2]
[346226396,1734783047059,-150.0,0.00019839,2]
[346226397,1734783047070,-150.0,0.0001984,2]
[346226398,1734783047080,-150.0,0.00019844,2]
[346226399,1734783047090,-150.0,0.00019845,2]
[346226400,1734783047100,-162.09288499,0.00019846,2]
[346226401,1734783047123,-150.0,0.00019748,2]
[346226402,1734783047132,-630.62941333,0.00019846,2]
[346226403,1734783047142,-150.0,0.00019847,2]
[346226404,1734783047153,-150.0,0.00019848,2]
[346226405,1734783047163,-150.0,0.00019853,2]
[346226406,1734783047173,-150.0,0.00019855,2]
[346226407,1734783047183,-792.72229832,0.00019857,2]
[346226408,1734783047193,-150.0,0.00019858,2]
[346226409,1734783047203,-150.0,0.00019858,2]
[346226410,1734783047212,-150.0,0.0001986,2]
[346226411,1734783047222,-150.0,0.0001986,2]
[346226412,1734783047232,-150.0,0.00019864,2]
[346226413,1734783047244,-150.0,0.00019866,2]
[346226414,1734783047254,-150.0,0.00019868,2]
[346226415,1734783047263,-792.72229832,0.00019869,2]
[346226416,1734783047273,-150.0,0.0001987,2]
[346226417,1734783047283,-150.0,0.00019873,2]
[346226418,1734783047295,-150.0,0.00019874,2]
[346226419,1734783047305,-150.0,0.00019874,2]
[346226420,1734783047314,-986.66,0.00019876,2]
[346226421,1734783047323,-165.01168063,0.00019876,2]
[346226422,1734783047334,-648.65,0.00019876,2]
[346226423,1734783047344,-500.0,0.00019876,2]
[346226424,1734783047353,-500.0,0.00019876,2]
[346226425,1734783047363,-698.56,0.00019876,2]
[346226426,1734783047372,-1194.14908563,0.00019876,2]
[346226427,1734783047385,-489.82091437,0.00019876,2]
[346226428,1734783047394,-500.0,0.00019876,2]
[346226429,1734783047404,-959.76,0.00019876,2]
[346226430,1734783047414,-777.61,0.00019876,2]
[346226431,1734783047423,-604.1,0.00019876,2]
[346226432,1734783047432,-1413.74,0.00019876,2]
[346226433,1734783047442,-566.78,0.00019876,2]
[346226434,1734783047451,-835.97,0.00019876,2]
[346226435,1734783047461,-1195.68,0.00019876,2]
[346226436,1734783047470,-500.0,0.00019876,2]
[346226437,1734783047480,-612.41,0.00019876,2]
[346226438,1734783047490,-500.0,0.00019876,2]
[346226439,1734783047499,-528.62,0.00019876,2]
[346226440,1734783047508,-2906.30519528,0.00019876,2]
[346226441,1734783047520,-512.46195,0.00019876,2]
[346226442,1734783047549,-150.0,0.00019726,2]
[346226443,1734783047559,-2039.71285472,0.00019876,2]
[346226444,1734783047569,-500.0,0.00019876,2]
[346226445,1734783047578,-500.0,0.00019876,2]
[346226446,1734783047588,-1191.87,0.00019876,2]
[346226447,1734783047597,-500.0,0.00019876,2]
[346226448,1734783047606,-500.0,0.00019876,2]
[346226449,1734783047616,-500.0,0.00019876,2]
[346226450,1734783047626,-500.0,0.00019876,2]
[346226451,1734783047635,-500.0,0.00019876,2]
[346226452,1734783047646,-500.0,0.00019876,2]
[346226453,1734783047656,-500.0,0.00019876,2]
[346226454,1734783047666,-500.0,0.00019876,2]
[346226455,1734783047676,-610.69,0.00019877,2]
[346226456,1734783047686,-500.0,0.00019877,2]
[346226457,1734783047695,-500.0,0.00019877,2]
[346226458,1734783047705,-641.42,0.00019877,2]
[346226459,1734783047714,-484.82,0.00019877,2]
[346226460,1734783047722,-500.0,0.00019877,2]
[346226461,1734783047731,-500.0,0.00019877,2]
[346226462,1734783047741,-500.0,0.00019877,2]
[346226463,1734783047751,-500.0,0.00019877,2]
[346226464,1734783047763,-500.0,0.00019877,2]
[346226465,1734783047772,-500.0,0.00019877,2]
[346226466,1734783047782,-195.97897684,0.00019877,2]
[346226467,1734783047791,-500.0,0.00019877,2]
[346226468,1734783047802,-500.0,0.00019877,2]
[346226469,1734783047812,-500.0,0.00019877,2]
[346226470,1734783047822,-283.56639031,0.00019877,2]
[346226471,1734783047835,-216.43360969,0.00019877,2]
[346226472,1734783047845,-196.31758351,0.00019877,2]
[346226473,1734783047854,-500.0,0.00019877,2]
[346226474,1734783047865,-44.7688068,0.00019877,2]
[346226475,1734783047888,-150.0,0.00019743,2]
[346226476,1734783047898,-152.0,0.00019877,2]
[346226477,1734783624208,568.54,0.00016879,2]
[346226480,1734783908255,87289.6685952,0.00013,2]
[346226481,1734783929335,150501.34541111,9e-05,2]
[346226482,1734783935776,28000.0,8e-05,2]
[346226484,1734783953795,4601.21267139,6.94e-05,2]
[346226485,1734783961595,17068.22651963,9.8e-05,2]
[346226486,1734783965858,11031.15905027,7e-05,2]
[346226490,1734784003955,254.87,0.00010137,2]
[346226491,1734784004181,254.87,0.00016813,2]
[346226492,1734784034149,205.0,9.8e-05,2]
[346226493,1734784038376,248.03029442,0.000101,2]
[346226514,1734784231533,-250.0,0.0001876,2]
[346226515,1734784231543,-913.3,0.00018767,2]
[346226516,1734784231553,-20627.51,0.00018769,2]
[346226517,1734784231563,-1000.0,0.00018774,2]
[346226518,1734784231573,-273.24,0.00018798,2]
[346226519,1734784231583,-250.0,0.000188,2]
[346226520,1734784231593,-1529.52339206,0.000188,2]
[346226521,1734784231603,-803.91800194,0.00018802,2]
[346226522,1734784231715,-37.24199806,0.00018802,2]
[346226523,1734784231725,-163.66,0.00018803,2]
[346226524,1734784231734,-682.996,0.0001889,2]
[346226525,1734784231744,-641.25527235,0.00019,2]
[346226526,1734784231756,-1284.21149114,0.00019,2]
[346226527,1734784231766,-393.87,0.00019018,30]
[346226528,1734784231776,-568.54,0.00019143,2]
[346226529,1734784231785,-500.0,0.00019518,2]
[346226530,1734784231795,-800.0,0.00019518,2]
[346226531,1734784231805,-1000.0,0.000196,2]
[346226532,1734784231815,-150.0,0.000196,2]
[346226533,1734784231825,-150.0,0.000196,2]
[346226534,1734784231835,-285.31759926,0.000196,2]
[346226535,1734784231859,-691.66240074,0.000196,2]
[346226536,1734784231869,-365.07,0.000196,2]
[346226537,1734784231879,-150.0,0.00019703,2]
[346226538,1734784231888,-150.0,0.00019704,2]
[346226539,1734784231897,-150.0,0.00019706,2]
[346226540,1734784231907,-150.0,0.00019707,2]
[346226541,1734784231916,-150.0,0.00019716,2]
[346226542,1734784231926,-150.0,0.00019717,2]
[346226543,1734784231935,-150.0,0.00019717,2]
[346226544,1734784231949,-150.0,0.0001972,2]
[346226545,1734784231959,-500.0,0.00019721,2]
[346226546,1734784231969,-150.0,0.00019722,2]
[346226547,1734784231979,-150.0,0.0001973,2]
[346226548,1734784231989,-150.0,0.00019732,2]
[346226549,1734784231999,-150.0,0.00019733,2]
[346226550,1734784232008,-150.0,0.00019737,2]
[346226551,1734784232018,-150.0,0.00019738,2]
[346226552,1734784232028,-150.0,0.00019741,2]
[346226553,1734784232038,-150.0,0.00019741,2]
[346226554,1734784232047,-150.0,0.00019742,2]
[346226556,1734784232056,-150.0,0.00019743,2]
[346226558,1734784232066,-150.0,0.00019751,2]
[346226560,1734784232076,-333.15979687,0.00019751,2]
[346226562,1734784232086,-150.0,0.00019752,2]
[346226564,1734784232096,-150.0,0.00019756,2]
[346226566,1734784232105,-4867.8747,0.00019757,2]
[346226568,1734784232115,-150.0,0.00019761,2]
[346226570,1734784232124,-150.0,0.00019763,2]
[346226572,1734784232134,-2689.0141,0.00019765,2]
[346226573,1734784232144,-333.15979686,0.00019765,2]
[346226574,1734784232153,-150.0,0.00019771,2]
[346226576,1734784232163,-165.01168062,0.00019775,2]
[346226578,1734784232173,-2601.6078,0.00019776,2]
[346226579,1734784232182,-161.41087814,0.00019776,2]
[346226580,1734784232195,-204.43142777,0.00019776,2]
[346226581,1734784232205,-32620.8848,0.00019777,2]
[346226582,1734784232215,-82804.1682,0.00019777,2]
[346226583,1734784232225,-150.0,0.00019778,2]
[346226585,1734784232235,-333.15979686,0.0001978,2]
[346226587,1734784232244,-150.0,0.00019784,2]
[346226589,1734784232254,-150.0,0.00019786,2]
[346226591,1734784232263,-204.43142776,0.00019788,2]
[346226593,1734784232272,-150.0,0.00019789,2]
[346226595,1734784232282,-150.0,0.0001979,2]
[346226597,1734784232291,-150.0,0.00019791,2]
[346226599,1734784232300,-150.0,0.00019791,2]
[346226601,1734784232310,-150.0,0.00019793,2]
[346226603,1734784232319,-333.15979686,0.00019794,2]
[346226605,1734784232329,-150.0,0.00019797,2]
[346226607,1734784232338,-204.43142776,0.00019799,2]
[346226609,1734784232347,-1000.0,0.000198,2]
[346226611,1734784232357,-5000.0,0.000198,2]
[346226613,1734784232366,-150.0,0.00019802,2]
[346226615,1734784232375,-150.0,0.00019806,2]
[346226617,1734784232384,-333.15979686,0.00019808,2]
[346226619,1734784232393,-204.43142776,0.00019811,2]
[346226621,1734784232402,-150.0,0.00019811,2]
[346226623,1734784232411,-150.0,0.0001982,2]
[346226625,1734784232420,-150.0,0.0001982,2]
[346226627,1734784232430,-150.0,0.00019821,2]
[346226629,1734784232442,-150.0,0.00019821,2]
[346226631,1734784232452,-150.0,0.00019822,2]
[346226633,1734784232462,-204.43142776,0.00019822,2]
[346226635,1734784232472,-333.15979686,0.00019823,2]
[346226637,1734784232482,-150.0,0.00019825,2]
[346226639,1734784232491,-150.0,0.00019825,2]
[346226641,1734784232502,-150.0,0.00019826,2]
[346226643,1734784232512,-150.0,0.00019826,2]
[346226645,1734784232521,-150.0,0.00019833,2]
[346226647,1734784232532,-204.43142776,0.00019834,2]
[346226649,1734784232542,-333.15979686,0.00019837,2]
[346226651,1734784232551,-150.0,0.00019838,2]
[346226653,1734784232562,-150.0,0.00019839,2]
[346226655,1734784232572,-150.0,0.00019839,2]
[346226657,1734784232581,-150.0,0.00019841,2]
[346226659,1734784232591,-150.0,0.00019841,2]
[346226661,1734784232600,-204.43142776,0.00019845,2]
[346226663,1734784232609,-150.0,0.00019846,2]
[346226665,1734784232619,-150.0,0.00019847,2]
[346226667,1734784232628,-150.0,0.00019847,2]
[346226669,1734784232638,-150.0,0.00019849,2]
[346226671,1734784232647,-150.0,0.00019851,2]
[346226673,1734784232656,-333.15979686,0.00019851,2]
[346226675,1734784232666,-150.0,0.00019853,2]
[346226677,1734784232675,-150.0,0.00019853,2]
[346226679,1734784232684,-150.0,0.00019854,2]
[346226681,1734784232696,-1000.0,0.00019856,2]
[346226683,1734784232706,-500.0,0.00019856,2]
[346226685,1734784232715,-500.0,0.00019856,2]
[346226687,1734784232724,-849.39,0.00019856,2]
[346226689,1734784232734,-546.96,0.00019856,2]
[346226691,1734784232744,-193.708533,0.00019856,2]
[346226692,1734784232753,-500.0,0.00019856,2]
[346226693,1734784232763,-500.0,0.00019856,2]
[346226694,1734784232772,-652.13,0.00019856,2]
[346226695,1734784232782,-174.144417,0.00019856,2]
[346226696,1734784232791,-321.82387845,0.00019856,2]
[346226697,1734784232800,-737.86,0.00019856,2]
[346226698,1734784232810,-500.0,0.00019856,2]
[346226699,1734784232819,-500.0,0.00019856,2]
[346226700,1734784232830,-635.47,0.00019856,2]
[346226701,1734784232840,-500.0,0.00019856,2]
[346226702,1734784232850,-500.0,0.00019856,2]
[346226703,1734784232860,-711.88,0.00019856,2]
[346226704,1734784232869,-694.58,0.00019856,2]
[346226705,1734784232878,-2444.3,0.00019856,2]
[346226706,1734784232888,-2688.83,0.00019856,2]
[346226707,1734784232898,-1419.45,0.00019856,2]
[346226708,1734784232907,-1401.97,0.00019856,2]
[346226709,1734784232917,-606.79,0.00019856,2]
[346226710,1734784232926,-763.38,0.00019856,2]
[346226711,1734784232936,-516.59,0.00019856,2]
[346226712,1734784232949,-2137.9,0.00019856,2]
[346226713,1734784232958,-3496.71,0.00019856,2]
[346226714,1734784232967,-500.0,0.00019856,2]
[346226715,1734784232977,-744.73,0.00019856,2]
[346226716,1734784232986,-745.69,0.00019856,2]
[346226717,1734784232996,-888.96,0.00019856,2]
[346226718,1734784233005,-204.43142776,0.00019857,2]
[346226719,1734784233015,-3342.959,0.00019857,2]
[346226720,1734784233024,-208.036,0.00019857,2]
[346226721,1734784233034,-150.0,0.00019858,2]
[346226722,1734784233044,-150.0,0.00019861,2]
[346226723,1734784233054,-150.0,0.00019861,2]
[346226724,1734784233064,-155.09,0.00019865,2]
[346226725,1734784233078,-155.09,0.00019865,2]
[346226726,1734784233087,-155.09,0.00019865,2]
[346226727,1734784233098,-155.09,0.00019865,2]
[346226728,1734784233107,-155.09,0.00019865,2]
[346226729,1734784233119,-155.09,0.00019865,2]
[346226730,1734784233129,-155.09,0.00019865,2]
[346226731,1734784233140,-155.09,0.00019865,2]
[346226732,1734784233152,-155.09,0.00019865,2]
[346226733,1734784233163,-155.09,0.00019865,2]
[346226734,1734784233173,-155.09,0.00019865,2]
[346226735,1734784233183,-168.30962771,0.00019865,2]
[346226736,1734784233197,-333.15979686,0.00019866,2]
[346226737,1734784233207,-155.09,0.00019866,2]
[346226738,1734784233217,-150.0,0.00019867,2]
[346226739,1734784233227,-204.43142776,0.00019868,2]
[346226740,1734784233238,-150.0,0.00019871,2]
[346226741,1734784233250,-1210.0,0.00019873,2]
[346226742,1734784233260,-151.0,0.00019874,2]
[346226743,1734784233270,-151.0,0.00019874,2]
[346226744,1734784233280,-629.99,0.00019874,2]
[346226745,1734784233290,-500.0,0.00019874,2]
[346226746,1734784233300,-500.0,0.00019874,2]
[346226747,1734784233310,-859.09,0.00019874,2]
[346226748,1734784233319,-1091.38,0.00019874,2]
[346226749,1734784233329,-500.0,0.00019874,2]
[346226750,1734784233339,-500.0,0.00019874,2]
[346226751,1734784233349,-500.0,0.00019874,2]
[346226752,1734784233359,-815.28,0.00019874,2]
[346226753,1734784233368,-500.0,0.00019874,2]
[346226754,1734784233378,-557.76,0.00019874,2]
[346226755,1734784233387,-500.0,0.00019874,2]
[346226756,1734784233397,-500.0,0.00019874,2]
[346226757,1734784233407,-779.66,0.00019874,2]
[346226758,1734784233416,-767.45,0.00019874,2]
[346226759,1734784233426,-731.6,0.00019874,2]
[346226760,1734784233435,-724.77,0.00019874,2]
[346226761,1734784233448,-1211.32,0.00019874,2]